fUSD/lending_fUSD_20250814
["ID","MTS","AMOUNT","RATE_DAILY","PERIOD"]
[379223139,1755196239368,-469.4,0.00026637,7]
[379223140,1755196239378,-1446.61063984,0.00026661,2]
[379223141,1755196239387,-10274.0664635,0.00026666,2]
[379223142,1755196239396,-34532.0512,0.00026676,2]
[379223143,1755196239406,-1000.0,0.00026676,2]
[379223144,1755196239415,-212.0,0.00026676,2]
[379223145,1755196239424,-102740.664635,0.00026703,2]
[379223146,1755196239434,-29336.241273,0.00026703,2]
[379223147,1755196239445,-190310.13,0.00026713,2]
[379223148,1755196239454,-155.94297526,0.0002672,2]
[379223149,1755196239463,-10274.0664635,0.00026755,2]
[379223150,1755196239473,-14668.1206365,0.00026755,2]
[379223151,1755196239483,-160.0,0.00026765,2]
[379223152,1755196239492,-1527.94617782,0.00026776,2]
[379223153,1755196239504,-2917.52684581,0.00026786,2]
[379223154,1755196239514,-209.09502165,0.00026787,2]
[379223155,1755196239523,-335.46,0.00026788,2]
[379223156,1755196239533,-1624.45997095,0.00026789,2]
[379223157,1755196239542,-1624.45997095,0.0002679,2]
[379223158,1755196239552,-2917.52684581,0.00026791,2]
[379223159,1755196239561,-3810.01477576,0.00026798,2]
[379223160,1755196239571,-2917.52684581,0.00026798,2]
[379223161,1755196239580,-158.51980381,0.00026805,2]
[379223162,1755196239589,-164.78,0.00026808,2]
[379223163,1755196239598,-2917.52684581,0.00026815,2]
[379223164,1755196239608,-664.19901132,0.00026815,2]
[379223165,1755196239617,-5665.09767917,0.00026816,2]
[379223166,1755196239627,-5665.09767917,0.00026823,2]
[379223167,1755196239637,-209.09502165,0.00026828,2]
[379223168,1755196239646,-10274.0664635,0.00026829,2]
[379223169,1755196239655,-14668.1206365,0.00026829,2]
[379223170,1755196239665,-2917.52684581,0.00026831,2]
[379223171,1755196239674,-5665.09767917,0.00026832,2]
[379223172,1755196239683,-1624.45997095,0.00026834,2]
[379223173,1755196239692,-3810.01477576,0.00026841,2]
[379223174,1755196239702,-319.64116014,0.00026843,2]
[379223175,1755196239711,-282.95284704,0.00026843,2]
[379223176,1755196239720,-5665.09767917,0.00026848,2]
[379223177,1755196239730,-2039.86,0.00026849,14]
[379223178,1755196239739,-319.64116014,0.00026851,2]
[379223179,1755196239749,-209.09502165,0.00026857,2]
[379223180,1755196239759,-3810.01477576,0.00026861,2]
[379223181,1755196239769,-7334.06031826,0.00026862,2]
[379223182,1755196239779,-1624.45997095,0.00026865,2]
[379223183,1755196239788,-664.19901132,0.00026867,2]
[379223184,1755196239798,-3111.0,0.00026872,2]
[379223185,1755196239807,-160.0,0.00026872,2]
[379223186,1755196239816,-287.61899177,0.00026872,2]
[379223187,1755196239826,-311.1,0.00026872,2]
[379223188,1755196239835,-664.19901132,0.00026872,2]
[379223189,1755196239845,-5665.09767917,0.00026878,2]
[379223190,1755196239854,-664.19901132,0.00026878,2]
[379223191,1755196239864,-282.95284704,0.00026879,2]
[379223192,1755196239873,-1624.45997095,0.00026885,2]
[379223193,1755196239882,-664.19901132,0.00026887,2]
[379223194,1755196239892,-1609.2817158,0.0002689,2]
[379223195,1755196239901,-10274.0664635,0.0002689,2]
[379223197,1755196239911,-7334.06031826,0.0002689,2]
[379223198,1755196239920,-205.18063015,0.00026892,2]
[379223199,1755196239930,-2917.52684581,0.00026899,2]
[379223200,1755196239939,-246.09519603,0.000269,2]
[379223201,1755196239949,-23153.25669174,0.000269,2]
[379223202,1755196239959,-5064.90584439,0.000269,2]
[379223203,1755196239969,-10274.0664635,0.00026903,2]
[379223204,1755196239978,-14668.1206365,0.00026903,2]
[379223205,1755196239988,-2917.52684581,0.00026904,2]
[379223207,1755196239998,-1624.45997095,0.00026906,2]
[379223209,1755196240008,-282.95284704,0.00026907,2]
[379223211,1755196240017,-664.19901132,0.00026916,2]
[379223213,1755196240027,-3810.01477576,0.00026922,2]
[379223215,1755196240036,-319.64116014,0.00026931,2]
[379223216,1755196240046,-3810.01477576,0.00026935,2]
[379223217,1755196240055,-664.19901132,0.0002694,2]
[379223218,1755196240065,-282.95284704,0.00026941,2]
[379223219,1755196240074,-319.64116014,0.00026942,2]
[379223220,1755196240084,-282.95284704,0.00026952,2]
[379223221,1755196240094,-282.95284704,0.00026957,2]
[379223222,1755196240104,-3810.01477576,0.00026958,2]
[379223223,1755196240114,-7334.06031826,0.00026958,2]
[379223224,1755196240124,-5665.09767917,0.00026965,2]
[379223225,1755196240133,-376.1,0.00026968,2]
[379223226,1755196240143,-209.09502165,0.00026974,2]
[379223227,1755196240154,-10274.0664635,0.00026978,2]
[379223228,1755196240164,-14668.1206365,0.00026978,2]
[379223229,1755196240175,-209.09502165,0.00026979,2]
[379223230,1755196240185,-1624.45997095,0.00026979,2]
[379223231,1755196240195,-5064.90584438,0.00026979,2]
[379223232,1755196240206,-960.1,0.0002698,2]
[379223233,1755196240216,-14668.1206365,0.0002698,2]
[379223234,1755196240233,-319.64116014,0.00026981,2]
[379223235,1755196240243,-5665.09767917,0.00026985,2]
[379223236,1755196240254,-282.95284704,0.00026985,2]
[379223237,1755196240265,-319.64116014,0.00026986,2]
[379223238,1755196240276,-1251.0,0.00026986,2]
[379223239,1755196240286,-2283.0,0.00026986,2]
[379223240,1755196240295,-10274.0664635,0.00026989,2]
[379223241,1755196240307,-7334.06031826,0.00026989,2]
[379223242,1755196240318,-209.09502165,0.0002699,2]
[379223243,1755196240328,-3459.0,0.0002699,2]
[379223244,1755196240338,-30822.1993906,0.0002699,2]
[379223245,1755196240348,-132013.085729,0.0002699,2]
[379223246,1755196240358,-319.64116014,0.00026993,2]
[379223248,1755196240368,-209.09502165,0.00026993,2]
[379223250,1755196240378,-3810.01477576,0.00026993,2]
[379223252,1755196240388,-670718.17420393,0.00026997,3]
[379223254,1755196240399,-2000.0,0.00027,2]
[379223256,1755196240408,-2000.0,0.00027,2]
[379223258,1755196240419,-2000.0,0.00027,2]
[379223260,1755196240428,-2000.0,0.00027,2]
[379223261,1755196240438,-3000.0,0.00027,2]
[379223263,1755196240449,-26797.053675,0.00027,2]
[379223264,1755196240459,-14845.43983098,0.00027,7]
[379223265,1755196240469,-458.13769775,0.00027,7]
[379223266,1755196240479,-211.86673127,0.00027,7]
[379223267,1755196240489,-1286449.99281964,0.00027,3]
[379223268,1755196241675,-796757.07296464,0.00027,3]
[379223269,1755196241773,-470.69022,0.00027,3]
[379223270,1755196241859,-4501.0,0.00027,3]
[379223271,1755196242655,-178.63726194,0.00018899,2]
[379223272,1755196242666,-200.0,0.00026602,2]
[379223273,1755196242675,-8681.02756634,0.00027,3]
[379223274,1755196242686,-181303.35510457,0.00027,3]
[379223275,1755196242734,-336.13287453,0.00018999,2]
[379223276,1755196242744,-234103.86712547,0.00027,3]
[379223281,1755196243018,-1323698.99419934,0.00027,3]
[379223282,1755196243030,-608.149189,0.00027,2]
[379223284,1755196243041,-1690.61725378,0.00027005,2]
[379223285,1755196243051,-185.22,0.0002704,2]
[379223286,1755196243062,-218.89,0.00027053,2]
[379223287,1755196243073,-5064.90584438,0.00027059,2]
[379223288,1755196243084,-342.85907016,0.00027065,2]
[379223289,1755196243093,-5000.0,0.00027071,4]
[379223290,1755196243103,-186.45,0.00027085,2]
[379223291,1755196243113,-1000.0,0.000271,2]
[379223292,1755196243124,-1000.0,0.000271,2]
[379223293,1755196243133,-1000.0,0.000271,2]
[379223294,1755196243143,-4393.88,0.000271,2]
[379223295,1755196243152,-164.78,0.00027104,2]
[379223296,1755196243161,-9924.488,0.00027118,15]
[379223297,1755196243171,-1771.95279177,0.0002712,2]
[379223298,1755196243180,-5512.05819,0.0002712,2]
[379223299,1755196243189,-2039.86,0.00027123,14]
[379223300,1755196243198,-654.0,0.00027137,2]
[379223301,1755196243207,-447.367,0.00027137,15]
[379223302,1755196243220,-5064.90584438,0.00027138,2]
[379223303,1755196243232,-151.0,0.00027147,2]
[379223304,1755196243242,-5000.0,0.00027148,2]
[379223305,1755196243253,-10000.0,0.0002716,2]
[379223306,1755196243266,-7832.92575614,0.00027172,2]
[379223307,1755196243275,-342.85907013,0.00027172,2]
[379223308,1755196243285,-200.0,0.00027177,2]
[379223309,1755196243294,-200.0,0.00027178,2]
[379223310,1755196243305,-160.0,0.000272,7]
[379223311,1755196243315,-150.0,0.00027216,2]
[379223312,1755196243324,-5064.90584438,0.00027218,2]
[379223313,1755196243334,-1853.28832975,0.00027234,2]
[379223314,1755196243344,-151.0,0.00027243,7]
[379223315,1755196243354,-1136.372699,0.00027243,7]
[379223316,1755196243363,-1136.372699,0.00027243,7]
[379223317,1755196243372,-301.02765107,0.0002726,2]
[379223318,1755196243382,-342.85907013,0.00027279,2]
[379223319,1755196243392,-1296.0,0.00027282,2]
[379223320,1755196243402,-1655.0,0.00027282,2]
[379223321,1755196243412,-565.0,0.00027282,2]
[379223322,1755196243421,-1172.0,0.00027282,2]
[379223323,1755196243431,-893.0,0.00027282,2]
[379223324,1755196243440,-927.0,0.00027282,2]
[379223325,1755196243450,-3369.0,0.00027282,2]
[379223326,1755196243460,-1254.0,0.00027282,2]
[379223327,1755196243469,-1730.806,0.00027282,2]
[379223328,1755196243479,-4149.0,0.00027282,2]
[379223329,1755196243488,-331.21005571,0.00027297,2]
[379223330,1755196243497,-5064.90584438,0.00027297,2]
[379223331,1755196243510,-1000.0,0.00027299,2]
[379223332,1755196243519,-160.0,0.000273,7]
[379223333,1755196243528,-165.7,0.000273,16]
[379223334,1755196243537,-5858.44,0.000273,2]
[379223335,1755196243546,-301.02765102,0.00027322,2]
[379223336,1755196243556,-500.0,0.00027346,2]
[379223337,1755196243566,-150.0,0.00027346,2]
[379223338,1755196243575,-216.99248073,0.00027346,2]
[379223339,1755196243585,-200.0,0.00027346,2]
[379223340,1755196243594,-1934.62386773,0.00027349,2]
[379223341,1755196243604,-3427.45719773,0.00027359,2]
[379223342,1755196243613,-1637.8308387,0.00027359,2]
[379223343,1755196243623,-584686.5352522,0.00027359,2]
[379223344,1755196243632,-1748.678487,0.0002736,7]
[379223345,1755196243641,-350.0,0.0002737,2]
[379223346,1755196243651,-246.09519602,0.00027373,2]
[379223347,1755196243660,-539.58967048,0.00027373,2]
[379223348,1755196243670,-500.0,0.00027373,2]
[379223349,1755196243679,-500.0,0.00027373,2]
[379223350,1755196243689,-500.0,0.00027373,2]
[379223351,1755196243699,-500.0,0.00027373,2]
[379223352,1755196243708,-500.0,0.00027373,2]
[379223353,1755196243717,-500.0,0.00027373,2]
[379223355,1755196243727,-500.0,0.00027373,2]
[379223356,1755196243736,-500.0,0.00027373,2]
[379223357,1755196243745,-500.0,0.00027373,2]
[379223358,1755196243757,-162.08062459,0.00027373,2]
[379223359,1755196243767,-500.0,0.00027373,2]
[379223360,1755196243776,-172.49531556,0.00027373,2]
[379223361,1755196243786,-500.0,0.00027373,2]
[379223362,1755196243795,-500.0,0.00027373,2]
[379223363,1755196243804,-500.0,0.00027373,2]
[379223364,1755196243814,-500.0,0.00027373,2]
[379223365,1755196243823,-502.24454179,0.00027373,2]
[379223366,1755196243832,-500.0,0.00027373,2]
[379223368,1755196243841,-500.0,0.00027373,2]
[379223370,1755196243852,-500.0,0.00027373,2]
[379223372,1755196243861,-500.0,0.00027373,2]
[379223373,1755196243871,-500.0,0.00027373,2]
[379223374,1755196243880,-500.0,0.00027373,2]
[379223375,1755196243889,-366.25864031,0.00027373,2]
[379223376,1755196243899,-500.0,0.00027373,2]
[379223377,1755196243908,-500.0,0.00027373,2]
[379223378,1755196243918,-500.0,0.00027373,2]
[379223379,1755196243927,-323.90526316,0.00027373,2]
[379223380,1755196243937,-500.0,0.00027373,2]
[379223381,1755196243947,-500.6619435,0.00027373,2]
[379223382,1755196243956,-500.0,0.00027373,2]
[379223383,1755196243965,-370.73324084,0.00027373,2]
[379223384,1755196243975,-308.64536307,0.00027373,2]
[379223385,1755196243984,-500.0,0.00027373,2]
[379223386,1755196243994,-269.96187325,0.00027373,2]
[379223387,1755196244004,-515.13993855,0.00027373,2]
[379223388,1755196244014,-16334.47685183,0.0002738,3]
[379223389,1755196244023,-301.02765102,0.00027384,2]
[379223390,1755196244032,-342.85907013,0.00027387,2]
[379223391,1755196244042,-151.0,0.00027387,7]
[379223392,1755196244051,-1136.372699,0.00027387,7]
[379223393,1755196244060,-1136.372699,0.00027387,7]
[379223394,1755196244070,-1156.86037218,0.00027387,2]
[379223395,1755196244079,-6900.0,0.00027387,2]
[379223396,1755196244089,-4013.81208389,0.0002739,2]
[379223397,1755196244099,-7928.68197488,0.0002739,2]
[379223398,1755196244108,-3585.78688486,0.0002739,7]
[379223399,1755196244117,-150.0,0.00027391,2]
[379223400,1755196244127,-150.0,0.00027391,2]
[379223401,1755196244136,-150.0,0.00027396,2]
[379223402,1755196244145,-150.0,0.00027396,2]
[379223403,1755196244154,-150.0,0.00027396,2]
[379223404,1755196244164,-150.0,0.00027396,2]
[379223405,1755196244173,-150.0,0.00027396,2]
[379223406,1755196244182,-154.99228038,0.00027396,2]
[379223407,1755196244191,-17858.51526732,0.00027397,2]
[379223408,1755196244217,-54375.428,0.00027397,2]
[379223409,1755196244249,-2833.43686411,0.00027397,2]
[379223410,1755196244260,-1666.56313589,0.00027397,2]
[379223412,1755196245761,-4008.43292873,0.00027397,2]
[379223413,1755196245773,-337.27249606,0.00027397,2]
[379223414,1755196245785,-550.67120004,0.00027397,2]
[379223415,1755196245797,-1057.43595222,0.00027397,2]
[379223425,1755196246461,-441.14806462,0.00027397,2]
[379223426,1755196246513,-162.52682529,0.00023451,2]
[379223427,1755196246523,-119.37079071,0.00027397,2]
[379223465,1755196247894,-162.52682523,0.00023949,2]
[379223466,1755196247904,-440.64185351,0.00027397,2]
[379223467,1755196247930,-634.55693481,0.00027397,2]
[379223468,1755196247941,-583.0821395,0.00027397,2]
[379223469,1755196247964,-263.98149903,0.00027397,2]
[379223470,1755196247999,-3399.37802863,0.00027397,2]
[379223471,1755196248013,-1287.65059539,0.00027397,2]
[379223473,1755196395566,500.0,0.00030137,120]
[379223474,1755196403377,2000.0,0.00030137,120]
[379223478,1755196407786,500.0,0.00030137,120]
[379223479,1755196413385,500.0,0.00030137,120]
[379223481,1755196452655,154.71043142,0.00030136,120]
[379223484,1755196566347,150.0,0.00028603,120]
[379223492,1755196825760,160.0,0.00025661,120]
[379223494,1755196889758,1500.00000008,0.0003,120]
[379223495,1755196939177,836.86,0.00025809,30]
[379223498,1755196997083,2000.0,0.00030137,120]
[379223499,1755197001139,500.0,0.00030137,120]
[379223500,1755197006983,500.0,0.00030137,120]
[379223504,1755197219240,2000.0,0.00030136,120]
[379223506,1755197283111,2000.0,0.00030136,120]
[379223512,1755197323801,2198.0,0.00030137,120]
[379223513,1755197329038,2000.0,0.00030136,120]
[379223514,1755197393330,187.93,0.00013699,2]
[379223538,1755197432458,-300.0,0.0001933,2]
[379223539,1755197432467,-1200.0,0.0001933,2]
[379223540,1755197432476,-5000.0,0.00019331,2]
[379223541,1755197432486,-300.0,0.00019331,2]
[379223542,1755197432496,-5000.0,0.00019331,2]
[379223543,1755197432506,-300.0,0.00019331,2]
[379223544,1755197432516,-305.05,0.00019331,2]
[379223545,1755197432525,-305.66,0.00019331,2]
[379223546,1755197432534,-304.88,0.00019332,2]
[379223547,1755197432543,-305.98,0.00019332,2]
[379223548,1755197432552,-301.61,0.00019332,2]
[379223549,1755197432562,-301.43,0.00019332,2]
[379223550,1755197432571,-303.4,0.00019332,2]
[379223551,1755197432581,-304.71,0.00019332,2]
[379223552,1755197432594,-152.26,0.00019332,2]
[379223553,1755197432603,-304.38,0.00019332,2]
[379223554,1755197432612,-301.69,0.00019332,2]
[379223555,1755197432621,-301.96,0.00019332,2]
[379223556,1755197432632,-302.83,0.00019332,2]
[379223557,1755197432641,-152.79,0.00019332,2]
[379223558,1755197432650,-187.93,0.00020187,2]
[379223559,1755197432660,-420.0,0.00021063,2]
[379223560,1755197432670,-1200.0,0.00021165,2]
[379223562,1755197432680,-5000.0,0.00021263,2]
[379223563,1755197432689,-300.0,0.00021263,2]
[379223564,1755197432699,-5000.0,0.00021263,2]
[379223565,1755197432708,-300.0,0.00021264,2]
[379223566,1755197432718,-4029.96600001,0.00022088,2]
[379223568,1755197432727,-587.0,0.00022951,2]
[379223570,1755197432736,-9181.68565493,0.000249,2]
[379223571,1755197432744,-823.0,0.00025008,2]
[379223572,1755197432755,-1027.5,0.00025034,2]
[379223574,1755197432764,-300.0,0.00025503,2]
[379223575,1755197432774,-3000.0,0.00025503,2]
[379223576,1755197432783,-160.0,0.00025503,2]
[379223577,1755197432792,-500.0,0.00025503,2]
[379223578,1755197432801,-500.0,0.00025503,2]
[379223579,1755197432810,-500.0,0.00025503,2]
[379223580,1755197432819,-500.0,0.00025503,2]
[379223581,1755197432828,-500.0,0.00025503,2]
[379223582,1755197432838,-500.0,0.00025503,2]
[379223583,1755197432847,-600.0,0.00025503,2]
[379223584,1755197432857,-537.99925527,0.00025503,2]
[379223585,1755197432866,-200.0,0.00025503,2]
[379223586,1755197432876,-200.0,0.00025503,2]
[379223587,1755197432885,-200.0,0.00025503,2]
[379223588,1755197432895,-200.0,0.00025503,2]
[379223589,1755197432904,-200.0,0.00025503,2]
[379223590,1755197432914,-200.0,0.00025503,2]
[379223591,1755197432923,-200.0,0.00025503,2]
[379223592,1755197432932,-200.0,0.00025503,2]
[379223593,1755197432942,-200.0,0.00025503,2]
[379223594,1755197432952,-200.0,0.00025503,2]
[379223595,1755197432962,-200.0,0.00025503,2]
[379223596,1755197432972,-151.0,0.00025503,2]
[379223597,1755197432984,-200.0,0.00025503,2]
[379223598,1755197433003,-277.35679052,0.00025503,2]
[379223599,1755197433021,-200.0,0.00025503,2]
[379223600,1755197433030,-200.0,0.00025503,2]
[379223601,1755197433039,-151.0,0.00025503,2]
[379223602,1755197433047,-500.0,0.00025503,2]
[379223603,1755197433056,-500.0,0.00025503,2]
[379223604,1755197433066,-500.0,0.00025503,2]
[379223605,1755197433075,-500.0,0.00025503,2]
[379223606,1755197433084,-584.93012321,0.00025503,2]
[379223607,1755197433093,-200.0,0.0002555,2]
[379223608,1755197433102,-824.91,0.00025626,2]
[379223609,1755197433111,-5000.0,0.00025626,2]
[379223610,1755197433120,-170.0,0.00025649,7]
[379223611,1755197433130,-200.0,0.0002565,2]
[379223612,1755197433139,-1732.92,0.00025654,2]
[379223613,1755197433148,-1000.0,0.00025657,2]
[379223614,1755197433158,-242.09,0.00025671,2]
[379223615,1755197433167,-433.71,0.00025818,7]
[379223616,1755197433176,-666.0,0.00025929,3]
[379223617,1755197433186,-250.0,0.00025968,2]
[379223618,1755197433195,-706.0,0.00025999,2]
[379223619,1755197433205,-158.05,0.00026015,2]
[379223620,1755197433214,-600.0,0.00026051,2]
[379223621,1755197433223,-151.0,0.00026051,2]
[379223622,1755197433233,-173.4,0.00026051,2]
[379223623,1755197433242,-706.0,0.00026107,2]
[379223624,1755197433252,-173.4,0.00026181,2]
[379223625,1755197433262,-706.0,0.00026186,2]
[379223627,1755197433273,-150.0,0.00026204,2]
[379223629,1755197433282,-173.4,0.00026312,2]
[379223631,1755197433292,-1031.0,0.000264,2]
[379223633,1755197433302,-154.1,0.00026404,2]
[379223635,1755197433312,-706.0,0.00026477,2]
[379223637,1755197433322,-706.0,0.00026544,7]
[379223639,1755197433332,-600.0,0.00026599,2]
[379223641,1755197433342,-151.0,0.00026599,2]
[379223643,1755197433351,-538.69,0.00026602,2]
[379223645,1755197433361,-242.09,0.00026634,2]
[379223647,1755197433371,-5810.0,0.00026637,7]
[379223648,1755197433380,-160.0,0.00026665,2]
[379223649,1755197433390,-187.93,0.00026676,2]
[379223650,1755197433400,-150.0,0.00026702,2]
[379223651,1755197433410,-302.4,0.00026728,2]
[379223653,1755197433419,-706.0,0.00026728,2]
[379223655,1755197433429,-706.0,0.00026742,2]
[379223657,1755197433439,-706.0,0.00026747,7]
[379223659,1755197433448,-195.13314657,0.00026785,2]
[379223661,1755197433458,-10239.61704675,0.00026788,2]
[379223663,1755197433469,-208.67879033,0.00026793,2]
[379223665,1755197433478,-168.0,0.00026795,2]
[379223666,1755197433488,-208.67879033,0.00026797,2]
[379223667,1755197433498,-2677.62576019,0.000268,2]
[379223668,1755197433509,-2677.62576019,0.00026802,2]
[379223669,1755197433519,-2351.62115172,0.00026806,2]
[379223670,1755197433529,-10239.61704675,0.00026807,2]
[379223671,1755197433538,-2351.62115172,0.00026808,2]
[379223672,1755197433548,-2351.62115172,0.0002681,2]
[379223673,1755197433558,-208.67879033,0.00026813,2]
[379223674,1755197433568,-666.70461823,0.00026814,2]
[379223675,1755197433579,-195.13314657,0.00026814,2]
[379223676,1755197433591,-1553.85536342,0.00026815,2]
[379223677,1755197433600,-10239.61704675,0.00026818,2]
[379223678,1755197433611,-198621.64297007,0.0002682,2]
[379223679,1755197433621,-208.67879033,0.00026821,2]
[379223680,1755197433631,-2677.62576019,0.00026828,2]
[379223681,1755197433640,-208.67879033,0.00026831,2]
[379223682,1755197433650,-195.13314657,0.00026832,2]
[379223683,1755197433660,-10239.61704675,0.00026833,2]
[379223684,1755197433670,-2029.69285634,0.00026835,2]
[379223685,1755197433681,-2806.9863158,0.00026835,2]
[379223686,1755197433690,-2029.69285634,0.00026836,2]
[379223687,1755197433699,-666.70461823,0.00026839,2]
[379223688,1755197433709,-1553.85536342,0.00026843,2]
[379223689,1755197433718,-1553.85536342,0.00026843,2]
[379223690,1755197433728,-527.02228818,0.00026843,2]
[379223691,1755197433737,-527.02228818,0.00026844,2]
[379223692,1755197433746,-198621.64297007,0.00026847,2]
[379223693,1755197433756,-198621.64297007,0.00026849,2]
[379223694,1755197433766,-1614.89,0.00026849,14]
[379223695,1755197433777,-500.0,0.00026849,2]
[379223696,1755197433786,-6546.0,0.00026849,2]
[379223697,1755197433795,-150.0,0.00026849,2]
[379223698,1755197433805,-150.0,0.00026849,2]
[379223699,1755197433814,-150.0,0.00026849,2]
[379223700,1755197433823,-500.0,0.00026849,2]
[379223701,1755197433833,-150.0,0.00026849,2]
[379223702,1755197433842,-150.0,0.00026849,2]
[379223703,1755197433851,-500.0,0.00026849,2]
[379223704,1755197433860,-500.0,0.00026849,2]
[379223705,1755197433869,-1553.85536342,0.00026851,2]
[379223706,1755197433879,-198621.64297007,0.00026853,2]
[379223707,1755197433888,-666.70461823,0.00026854,2]
[379223708,1755197433898,-2806.9863158,0.00026856,2]
[379223709,1755197433907,-2029.69285634,0.00026857,2]
[379223710,1755197433917,-198621.64297007,0.00026862,2]
[379223711,1755197433926,-666.70461823,0.00026863,2]
[379223712,1755197433935,-10239.61704675,0.00026863,2]
[379223713,1755197433945,-311.1,0.00026872,2]
[379223714,1755197433955,-3111.0,0.00026872,2]
[379223715,1755197433964,-160.0,0.00026872,2]
[379223716,1755197433973,-287.61899177,0.00026872,2]
[379223717,1755197433984,-2677.62576019,0.00026873,2]
[379223718,1755197433994,-198621.64297007,0.00026874,2]
[379223719,1755197434004,-195.13314657,0.00026876,2]
[379223720,1755197434014,-2806.9863158,0.00026878,2]
[379223721,1755197434025,-2806.9863158,0.0002688,2]
[379223722,1755197434035,-527.02228818,0.0002688,2]
[379223723,1755197434045,-168.0,0.00026884,2]
[379223724,1755197434055,-500.0,0.00026884,2]
[379223725,1755197434065,-150.0,0.00026884,2]
[379223726,1755197434075,-150.0,0.00026884,2]
[379223727,1755197434085,-2029.69285634,0.00026889,2]
[379223728,1755197434095,-195.13314657,0.00026892,2]
[379223729,1755197434104,-2029.69285634,0.00026896,2]
[379223730,1755197434115,-7795.00691164,0.00026899,2]
[379223731,1755197434124,-10000.0,0.000269,2]
[379223732,1755197434134,-2677.62576019,0.00026901,2]
[379223733,1755197434145,-2351.62115172,0.00026903,2]
[379223734,1755197434155,-2351.62115172,0.00026905,2]
[379223735,1755197434165,-2029.69285634,0.00026912,2]
[379223736,1755197434175,-2351.62115172,0.00026916,2]
[379223737,1755197434184,-1553.85536342,0.00026919,2]
[379223738,1755197434194,-666.70461823,0.00026922,2]
[379223739,1755197434203,-1553.85536342,0.00026925,2]
[379223740,1755197434213,-527.02228818,0.00026943,2]
[379223741,1755197434222,-195.13314657,0.00026949,2]
[379223742,1755197434231,-666.70461823,0.00026949,2]
[379223743,1755197434241,-144657.31467193,0.00026949,2]
[379223744,1755197434302,-22405.41688487,0.00026949,2]
[379223745,1755197434313,-20764.46385041,0.00026949,2]
[379223746,1755197434325,-844.46888117,0.00026949,2]
[379223747,1755197434337,-9949.97868169,0.00026949,2]
[379223748,1755197434346,-2085.20600013,0.00026959,2]
[379223806,1755197438974,-592.41976006,0.00026959,2]
[379223808,1755197438983,-208.67879033,0.00026964,2]
[379223810,1755197438993,-150.0,0.00026968,2]
[379223812,1755197439003,-150.0,0.00026968,2]
[379223814,1755197439013,-1414.43970861,0.00026973,2]
[379223819,1755197439046,-8825.17733814,0.00026973,2]
[379223821,1755197439056,-150.0,0.00026973,2]
[379223823,1755197439066,-150.0,0.00026973,2]
[379223825,1755197439075,-527.0,0.00026973,2]
[379223827,1755197439084,-500.0,0.00026973,2]
[379223829,1755197439094,-500.0,0.00026973,2]
[379223831,1755197439103,-527.02228818,0.0002698,2]
[379223833,1755197439112,-1553.85536342,0.00026981,2]
[379223835,1755197439122,-527.02228818,0.00026981,2]
[379223837,1755197439131,-2806.9863158,0.00026981,2]
[379223839,1755197439141,-208.67879033,0.00026984,2]
[379223841,1755197439151,-527.02228818,0.00026984,2]
[379223843,1755197439161,-2806.9863158,0.00026989,2]
[379223845,1755197439170,-2351.62115172,0.0002699,2]
[379223847,1755197439180,-2677.62576019,0.0002699,2]
[379223849,1755197439189,-2806.9863158,0.00026991,2]
[379223851,1755197439198,-195.13314657,0.00026991,2]
[379223853,1755197439208,-10239.61704675,0.00026994,2]
[379223855,1755197439217,-600.0,0.00026999,2]
[379223857,1755197439227,-600.0,0.00026999,2]
[379223859,1755197439236,-600.0,0.00026999,2]
[379223861,1755197439246,-600.0,0.00026999,2]
[379223863,1755197439256,-600.0,0.00026999,2]
[379223865,1755197439266,-600.0,0.00026999,2]
[379223867,1755197439276,-312.78207855,0.00026999,2]
[379223869,1755197439285,-2029.69285634,0.00026999,2]